bitfinex-derivatives/quotes_BTCF0:USTF0_20251214
["timestamp","ask_amount","ask_price","bid_price","bid_amount"]
[1765744947640,0.07610442,88673.0,88672.0,0.001]
[1765744947842,0.07610442,88673.0,88672.0,0.03125]
[1765744948143,0.07610442,88673.0,88672.0,0.06249]
[1765744948644,0.07610442,88673.0,88672.0,0.08165]
[1765744948943,0.06482912,88673.0,88672.0,0.0929254]
[1765744949240,0.06582912,88673.0,88672.0,0.0929254]
[1765744949632,0.06582912,88673.0,88672.0,0.0919254]
[1765744951237,0.09411035,88673.0,88672.0,0.0919254]
[1765744952542,0.09311035,88673.0,88672.0,0.0919254]
[1765744952743,0.09411035,88673.0,88672.0,0.0919254]
[1765744953144,0.09311035,88673.0,88672.0,0.0919254]
[1765744953344,0.09411035,88673.0,88672.0,0.0919254]
[1765744959642,0.06272035,88673.0,88672.0,0.0919254]
[1765744960853,0.09507035,88673.0,88672.0,0.0919254]
[1765744961654,0.09407035,88673.0,88672.0,0.0919254]
[1765744965341,0.09407035,88673.0,88672.0,0.10315414]
[1765744969254,0.02845035,88673.0,88672.0,0.10315414]
[1765744969455,0.09025035,88673.0,88672.0,0.10315414]
[1765744971361,0.09025035,88673.0,88672.0,0.10415414]
[1765744972557,0.09025035,88673.0,88672.0,0.10315414]
[1765744972953,0.09025035,88673.0,88672.0,0.09187874]
[1765744978766,0.09048881,88673.0,88672.0,0.09187874]
[1765744980866,0.42123,88697.0,88696.0,0.06276]
[1765744981073,0.42123,88697.0,88696.0,0.0740324]
[1765744981074,0.02993,88697.0,88696.0,0.0740324]
[1765744981272,0.3608,88709.0,88708.0,0.06276]
[1765744981273,0.42123,88709.0,88708.0,0.06276]
[1765744981568,0.7216,88709.0,88704.0,0.0112713]
[1765744981761,0.7216,88709.0,88700.0,0.0112718]
[1765744981762,0.06043,88701.0,88700.0,0.0112718]
[1765744981960,0.42123,88701.0,88700.0,0.02250054]
[1765744982165,0.42123,88701.0,88700.0,0.05346054]
[1765744982362,0.42123,88701.0,88700.0,0.08526054]
[1765744984070,0.41727057,88701.0,88700.0,0.08526054]
[1765744984264,0.41827057,88701.0,88700.0,0.08526054]
[1765744984470,0.05747057,88701.0,88700.0,0.08526054]
[1765744984774,0.41927057,88701.0,88700.0,0.08526054]
[1765744984975,0.41927057,88701.0,88700.0,0.07398874]
[1765744985175,0.41927057,88701.0,88700.0,0.01122874]
[1765744988885,0.41927057,88701.0,88700.0,0.04218874]
[1765744989384,0.41927057,88701.0,88700.0,0.01122874]
[1765745000088,0.4473423,88701.0,88700.0,0.01122874]
[1765745007003,0.4609223,88701.0,88700.0,0.01122874]
[1765745009893,0.4609223,88701.0,88700.0,0.04023874]
[1765745010301,0.4609223,88701.0,88700.0,0.01122874]
[1765745012797,0.4609223,88701.0,88700.0,0.04023874]
[1765745013108,0.4609223,88701.0,88700.0,0.01122874]
[1765745016202,0.4609223,88701.0,88700.0,0.07129874]
[1765745016402,0.4609223,88701.0,88700.0,0.01122874]
[1765745025914,0.4609223,88701.0,88700.0,0.04023874]
[1765745026210,0.4609223,88701.0,88700.0,0.07129874]
[1765745027612,0.4609223,88701.0,88700.0,0.04023874]
[1765745028304,0.4609223,88701.0,88700.0,0.01122874]
[1765745035016,0.1001223,88701.0,88700.0,0.01122874]
[1765745035218,0.4609223,88701.0,88700.0,0.01122874]
[1765745035618,0.4473423,88701.0,88700.0,0.07129874]
[1765745036914,0.4453423,88701.0,88700.0,0.07129874]
[1765745037122,0.4473423,88701.0,88700.0,0.07129874]
[1765745039310,0.4463423,88701.0,88700.0,0.07129874]
[1765745039615,0.4473423,88701.0,88700.0,0.07129874]
[1765745041023,0.4463423,88701.0,88700.0,0.07129874]
[1765745041320,0.4473423,88701.0,88700.0,0.07129874]
[1765745043616,0.4453423,88701.0,88700.0,0.07129874]
[1765745043822,0.4473423,88701.0,88700.0,0.07129874]
[1765745049420,0.0865423,88701.0,88700.0,0.07129874]
[1765745059625,0.0865423,88701.0,88700.0,0.04023874]
[1765745059827,0.0952323,88701.0,88700.0,0.01122874]
[1765745075556,0.0952323,88701.0,88700.0,0.04170874]
[1765745075757,0.0952323,88701.0,88700.0,0.01122874]
[1765745076458,0.0952323,88701.0,88700.0,0.04170874]
[1765745076755,0.0952323,88701.0,88700.0,0.01122874]
[1765745077354,0.08613097,88701.0,88700.0,0.07144874]
[1765745079960,0.44693097,88701.0,88700.0,0.07144874]
[1765745080764,0.08613097,88701.0,88700.0,0.07144874]
[1765745080951,0.44693097,88701.0,88700.0,0.07144874]
[1765745081958,0.44693097,88701.0,88700.0,0.04170874]
[1765745084958,0.44693097,88701.0,88700.0,0.07144874]
[1765745085164,0.44693097,88701.0,88700.0,0.04170874]
[1765745086564,0.44693097,88701.0,88700.0,0.07144874]
[1765745096278,0.44701208,88701.0,88700.0,0.08896874]
[1765745097278,0.44601208,88701.0,88700.0,0.08896874]
[1765745097481,0.44701208,88701.0,88700.0,0.08896874]
[1765745097881,0.44601208,88701.0,88700.0,0.07144874]
[1765745098066,0.44701208,88701.0,88700.0,0.07144874]
[1765745098772,0.08621208,88701.0,88700.0,0.07144874]
[1765745099071,0.44701208,88701.0,88700.0,0.07144874]
[1765745099582,0.08621208,88701.0,88700.0,0.07144874]
[1765745099784,0.44701208,88701.0,88700.0,0.07144874]
[1765745101280,0.44701208,88701.0,88700.0,0.08896874]
[1765745102273,0.44601208,88701.0,88700.0,0.07144874]
[1765745102573,0.44701208,88701.0,88700.0,0.07144874]
[1765745102883,0.44601208,88701.0,88700.0,0.07144874]
[1765745103076,0.44701208,88701.0,88700.0,0.07144874]
[1765745104980,0.39054151,88701.0,88700.0,0.07144874]
[1765745105177,0.05717912,88715.0,88714.0,0.05529]
[1765745105382,0.08496355,88715.0,88714.0,0.05529]
[1765745105785,0.08496355,88715.0,88714.0,0.06651874]
[1765745106277,0.08496355,88715.0,88714.0,0.03895874]
[1765745106471,0.08496355,88715.0,88714.0,0.01122874]
[1765745106882,0.08596355,88715.0,88714.0,0.01122874]
[1765745107472,0.08596355,88715.0,88714.0,0.06651874]
[1765745107886,0.08496355,88715.0,88714.0,0.06651874]
[1765745108082,0.08596355,88715.0,88714.0,0.06651874]
[1765745108582,0.08796355,88715.0,88714.0,0.01122874]
[1765745109387,0.08696355,88715.0,88714.0,0.01122874]
[1765745109582,0.08896355,88715.0,88714.0,0.01122874]
[1765745110087,0.08996355,88715.0,88714.0,0.01122874]
[1765745110287,0.08796355,88715.0,88714.0,0.01122874]
[1765745110485,0.81156355,88715.0,88714.0,0.01122874]
[1765745111193,0.81256355,88715.0,88714.0,0.01122874]
[1765745111888,0.80956355,88715.0,88714.0,0.01122874]
[1765745112093,0.81256355,88715.0,88714.0,0.01122874]
[1765745117694,0.09096355,88715.0,88714.0,0.01122874]
[1765745117897,0.81256355,88715.0,88714.0,0.01122874]
[1765745121394,0.09096355,88715.0,88714.0,0.01122874]
[1765745121797,0.81256355,88715.0,88714.0,0.01122874]
[1765745122586,0.78477912,88715.0,88714.0,0.01122874]
[1765745122789,0.81251915,88715.0,88714.0,0.01122874]
[1765745145810,0.45171915,88715.0,88714.0,0.01122874]
[1765745146308,0.51261215,88715.0,88714.0,0.01122874]
[1765745149613,0.51261215,88715.0,88714.0,0.04117874]
[1765745149813,0.45171915,88715.0,88714.0,0.01122874]
[1765745154708,0.45171915,88715.0,88714.0,0.06950874]
[1765745155417,0.09091915,88715.0,88714.0,0.06950874]
[1765745155603,0.45171915,88715.0,88714.0,0.06950874]
[1765745157417,0.44871915,88715.0,88714.0,0.06950874]
[1765745157615,0.45171915,88715.0,88714.0,0.06950874]
[1765745157818,0.44871915,88715.0,88714.0,0.06950874]
[1765745158118,0.45171915,88715.0,88714.0,0.06950874]
[1765745158317,0.45071915,88715.0,88714.0,0.06950874]
[1765745158521,0.44971915,88715.0,88714.0,0.06950874]
[1765745162318,0.44971915,88715.0,88714.0,0.08670874]
[1765745162524,0.44771915,88715.0,88714.0,0.08670874]
[1765745162720,0.44971915,88715.0,88714.0,0.08670874]
[1765745163625,0.44771915,88715.0,88714.0,0.08670874]
[1765745163814,0.44871915,88715.0,88714.0,0.08670874]
[1765745164015,0.44671915,88715.0,88714.0,0.08670874]
[1765745164217,0.44771915,88715.0,88714.0,0.08670874]
[1765745164418,0.44671915,88715.0,88714.0,0.08670874]
[1765745164720,0.44771915,88715.0,88714.0,0.08670874]
[1765745164918,0.41955915,88715.0,88714.0,0.08670874]
[1765745165828,0.41855915,88715.0,88714.0,0.08670874]
[1765745166033,0.41755915,88715.0,88714.0,0.08670874]
[1765745166226,0.38970915,88715.0,88714.0,0.08670874]
[1765745166825,0.41947915,88715.0,88714.0,0.08670874]
[1765745167022,0.44621915,88715.0,88714.0,0.01222874]
[1765745167519,0.44621915,88715.0,88714.0,0.06897874]
[1765745168623,0.44721915,88715.0,88714.0,0.06897874]
[1765745169125,0.44721915,88715.0,88714.0,0.06797874]
[1765745169330,0.44821915,88715.0,88714.0,0.06797874]
[1765745174331,0.39070915,88715.0,88714.0,0.06797874]
[1765745174637,0.36296912,88715.0,88714.0,0.06797874]
[1765745175624,0.36096912,88715.0,88714.0,0.06997874]
[1765745175830,0.00016912,88715.0,88714.0,0.07197874]
[1765745176827,0.02993912,88715.0,88714.0,0.06997874]
[1765745177023,0.05767912,88715.0,88714.0,0.07197874]
[1765745177335,0.00016912,88715.0,88714.0,0.07197874]
[1765745177728,0.00016912,88715.0,88714.0,0.06997874]
[1765745177928,0.00016912,88715.0,88714.0,0.07197874]
[1765745179634,0.00560702,88737.0,88714.0,0.07197874]
[1765745179635,0.39057,88748.0,88747.0,0.05675]
[1765745179931,0.05751,88761.0,88760.0,0.0388542]
[1765745180137,0.08529705,88761.0,88760.0,0.0680142]
[1765745180439,0.08529705,88761.0,88760.0,0.07924294]
[1765745181435,0.05751,88761.0,88760.0,0.09644294]
[1765745181635,0.03677,88761.0,88760.0,0.09644294]
[1765745182336,0.06451,88761.0,88760.0,0.09644294]
[1765745182538,0.06651,88761.0,88760.0,0.09644294]
[1765745183134,0.009,88761.0,88760.0,0.09644294]
[1765745183434,0.06597002,88761.0,88760.0,0.07924294]
[1765745183632,0.05951,88761.0,88760.0,0.06797874]
[1765745183837,0.06051,88761.0,88760.0,0.06797874]
[1765745185739,0.42131,88761.0,88760.0,0.06797874]
[1765745186050,0.42131,88761.0,88760.0,0.01122874]
[1765745187143,0.42131,88761.0,88760.0,0.04029874]
[1765745187345,0.42131,88761.0,88760.0,0.07029874]
[1765745188343,0.41789055,88761.0,88760.0,0.01122874]
[1765745189949,0.41789055,88761.0,88752.0,0.00016902]
[1765745189950,0.05893,88753.0,88752.0,0.00016902]
[1765745190142,0.41973,88753.0,88752.0,0.00016902]
[1765745190738,0.05893,88753.0,88752.0,0.01143432]
[1765745190946,0.05893,88753.0,88752.0,0.06963432]
[1765745191148,0.02956,88753.0,88752.0,0.06963432]
[1765745191552,0.05893,88753.0,88752.0,0.06963432]
[1765745202152,0.05893,88753.0,88752.0,0.08665432]
[1765745208164,0.02956,88753.0,88752.0,0.08665432]
[1765745208367,0.05730768,88753.0,88752.0,0.08665432]
[1765745209059,0.08667768,88753.0,88752.0,0.08665432]
[1765745214873,0.08667768,88753.0,88752.0,0.06963432]
[1765745215175,0.08667768,88753.0,88752.0,0.00016902]
[1765745216072,0.08667768,88753.0,88734.0,0.0112674]
[1765745216073,0.00896,88744.0,88734.0,0.0112674]
[1765745216278,0.05606,88735.0,88734.0,0.02893]
[1765745216575,0.05606,88731.0,88730.0,0.4303981]
[1765745218175,0.05606,88731.0,88730.0,0.41913]
[1765745219162,0.05706,88731.0,88730.0,0.41913]
[1765745219772,0.05806,88731.0,88730.0,0.41913]
[1765745220274,0.05806,88731.0,88730.0,0.4303981]
[1765745221768,0.05706,88731.0,88730.0,0.4303981]
[1765745222276,0.05606,88731.0,88730.0,0.4303981]
[1765745226882,0.05606,88731.0,88730.0,0.0695981]
[1765745235083,0.38963,88738.0,88737.0,0.0832472]
[1765745235286,0.41686,88738.0,88737.0,0.02893]
[1765745235482,0.41686,88738.0,88729.0,0.0112681]
[1765745235483,0.05606,88730.0,88729.0,0.05833]
[1765745235683,0.41686,88730.0,88729.0,0.05833]
[1765745236975,0.0112687,88726.0,88724.0,0.02893]
[1765745237180,0.0112687,88726.0,88722.0,0.00016902]
[1765745237181,0.05606,88723.0,88722.0,0.00016902]
[1765745237682,0.08387179,88723.0,88722.0,0.00016902]
[1765745239799,0.08587179,88723.0,88722.0,0.00016902]
[1765745240491,0.0112701,88714.0,88709.0,0.05833]
[1765745240690,0.41686,88710.0,88709.0,0.05833]
[1765745243889,0.41686,88710.0,88701.0,0.00016902]
[1765745243890,0.05606,88709.0,88701.0,0.00016902]
[1765745244096,0.05606,88705.0,88704.0,0.0696014]
[1765745248489,0.05606,88705.0,88704.0,0.0874214]
[1765745260520,0.05606,88705.0,88704.0,0.02893]
[1765745260708,0.3608,88706.0,88701.0,0.00016902]
[1765745260709,0.05867,88702.0,88701.0,0.00016902]
[1765745262816,0.05967,88702.0,88701.0,0.00016902]
[1765745263220,0.05867,88693.0,88692.0,0.0667829]
[1765745264434,0.05856475,88693.0,88692.0,0.0677829]
[1765745265333,0.05856475,88693.0,88692.0,0.0687829]
[1765745266229,0.05856475,88693.0,88692.0,0.05751]
[1765745270326,0.05856475,88693.0,88692.0,0.002]
[1765745270528,0.05856475,88693.0,88692.0,0.05751]
[1765745270729,0.05856475,88693.0,88692.0,0.0325019]
[1765745276034,0.38941,88698.0,88697.0,0.0682623]
[1765745276233,0.4176099,88698.0,88697.0,0.0682623]
[1765745276833,0.4456599,88698.0,88697.0,0.0682623]
[1765745277228,0.4466599,88698.0,88697.0,0.0682623]
[1765745278443,0.4476599,88698.0,88697.0,0.0682623]
[1765745279743,0.4466599,88698.0,88697.0,0.0682623]
[1765745280543,0.4466599,88698.0,88697.0,0.05699]
[1765745280844,0.4456599,88698.0,88697.0,0.05699]
[1765745282443,0.4456599,88698.0,88697.0,0.02957]
[1765745283345,0.4456599,88698.0,88697.0,0.05793]
[1765745287449,0.0848599,88698.0,88697.0,0.05793]
[1765745287849,0.4456599,88698.0,88697.0,0.05793]
[1765745290240,0.4456599,88698.0,88688.0,0.12570502]
[1765745290445,0.05666,88689.0,88688.0,0.0692033]
[1765745293043,0.05666,88689.0,88688.0,0.0712033]
[1765745295948,0.05666,88689.0,88688.0,0.0816933]
[1765745298653,0.05666,88689.0,88688.0,0.0712033]
[1765745299958,0.05666,88689.0,88688.0,0.0692033]
[1765745300159,0.05866,88689.0,88688.0,0.0692033]
[1765745300558,0.05766,88689.0,88688.0,0.0692033]
[1765745302562,0.05666,88689.0,88688.0,0.0692033]
[1765745303266,0.05666,88689.0,88688.0,0.0858033]
[1765745304560,0.05666,88689.0,88688.0,0.0692033]
[1765745308352,0.41784,88696.0,88695.0,0.0698325]
[1765745308554,0.02833487,88696.0,88695.0,0.0842425]
[1765745308768,0.00016912,88697.0,88696.0,0.05856]
[1765745309563,0.05720912,88697.0,88696.0,0.05856]
[1765745310159,0.05720912,88697.0,88696.0,0.05956]
[1765745310459,0.05702842,88697.0,88696.0,0.05956]
[1765745310869,0.05702842,88697.0,88696.0,0.06056]
[1765745311573,0.05702842,88697.0,88696.0,0.05956]
[1765745311760,0.05702842,88697.0,88696.0,0.06056]
[1765745312160,0.05702842,88697.0,88696.0,0.05956]
[1765745312379,0.05702842,88697.0,88696.0,0.03017]
[1765745312559,0.05702842,88697.0,88696.0,0.06056]
[1765745313667,0.05702842,88697.0,88696.0,0.05956]
[1765745315068,0.05702842,88697.0,88696.0,0.05856]
[1765745322182,0.05702842,88697.0,88696.0,0.07648]
[1765745324368,0.05324969,88697.0,88696.0,0.07648]
[1765745324878,0.05324969,88697.0,88696.0,0.07748]
[1765745325374,0.05324969,88697.0,88696.0,0.07648]
[1765745325576,0.05324969,88697.0,88696.0,0.07848]
[1765745326068,0.05324969,88697.0,88696.0,0.07748]
[1765745326265,0.00016912,88705.0,88704.0,0.0877514]
[1765745327387,0.02928912,88705.0,88704.0,0.0877514]
[1765745328582,0.05720912,88705.0,88704.0,0.0877514]
[1765745328774,0.05720912,88705.0,88704.0,0.0887514]
[1765745329580,0.05720912,88705.0,88704.0,0.0897514]
[1765745332085,0.05720912,88705.0,88704.0,0.0718314]
[1765745334086,0.05720912,88705.0,88704.0,0.0708314]
[1765745334985,0.05720912,88705.0,88704.0,0.0718314]
[1765745340092,0.05720912,88705.0,88704.0,0.0822414]
[1765745342290,0.05720912,88705.0,88704.0,0.0424414]
[1765745342493,0.05720912,88705.0,88704.0,0.0132714]
[1765745343202,0.05720912,88705.0,88704.0,0.0426714]
[1765745343404,0.05720912,88705.0,88704.0,0.0710214]
[1765745343702,0.05820912,88705.0,88704.0,0.0700214]
[1765745344204,0.05920912,88705.0,88704.0,0.0690214]
[1765745345705,0.05820912,88705.0,88704.0,0.0690214]
[1765745345906,0.05920912,88705.0,88704.0,0.0690214]
[1765745347005,0.05820912,88705.0,88704.0,0.0690214]
[1765745347206,0.05920912,88705.0,88704.0,0.0690214]
[1765745357617,0.05820912,88705.0,88704.0,0.0690214]
[1765745357810,0.05720912,88705.0,88704.0,0.0690214]
[1765745358911,0.08550159,88705.0,88704.0,0.0690214]
[1765745359817,0.08650159,88705.0,88704.0,0.0690214]
[1765745360617,0.08750159,88705.0,88704.0,0.0690214]
[1765745362318,0.08650159,88705.0,88704.0,0.0690214]
[1765745362919,0.08650159,88705.0,88704.0,0.05775]
[1765745363214,0.08550159,88705.0,88704.0,0.05775]
[1765745363420,0.08650159,88705.0,88704.0,0.05775]
[1765745363916,0.08750159,88705.0,88704.0,0.05775]
[1765745365520,0.08650159,88705.0,88704.0,0.05775]
[1765745365721,0.08750159,88705.0,88704.0,0.05775]
[1765745367024,0.08650159,88705.0,88704.0,0.05775]
[1765745367323,0.08750159,88705.0,88704.0,0.05775]
[1765745367626,0.0875089,88705.0,88704.0,0.05775]
[1765745381824,0.01659,88698.0,88697.0,0.0112722]
[1765745382025,0.07258,88698.0,88697.0,0.0690022]
[1765745382229,0.05599,88698.0,88697.0,0.0690022]
[1765745383126,0.05599,88698.0,88697.0,0.0700022]
[1765745383519,0.062,88698.0,88697.0,0.0700022]
[1765745383715,0.05599,88698.0,88697.0,0.0700022]
[1765745384331,0.05599,88698.0,88697.0,0.0710022]
[1765745385329,0.05599,88698.0,88697.0,0.0700022]
[1765745386529,0.05599,88698.0,88697.0,0.4308022]
[1765745387033,0.05599,88698.0,88697.0,0.4298022]
[1765745390936,0.05599,88698.0,88697.0,0.4308022]
[1765745391231,0.02756314,88705.0,88704.0,0.0855814]
[1765745391434,0.08409596,88705.0,88704.0,0.0855814]
[1765745401744,0.08409596,88705.0,88704.0,0.0690014]
[1765745402236,0.08409596,88705.0,88704.0,0.05773]
[1765745404053,0.01756,88695.0,88694.0,0.0697826]
[1765745404351,0.05833,88687.0,88686.0,0.3608]
[1765745404542,0.05833,88673.0,88664.0,0.3608]
[1765745404841,0.08685912,88673.0,88672.0,0.0586254]
[1765745405044,0.0295,88687.0,88686.0,0.06881]
[1765745405239,0.05833,88687.0,88686.0,0.0800837]
[1765745407043,0.05833,88687.0,88686.0,0.0810837]
[1765745407243,0.05833,88687.0,88686.0,0.0820837]
[1765745407936,0.05833,88687.0,88686.0,0.0810837]
[1765745408135,0.05833,88687.0,88686.0,0.0820837]
[1765745410044,0.05833,88687.0,88686.0,0.0717837]
[1765745410252,0.05833,88687.0,88686.0,0.0707837]
[1765745410439,0.05833,88687.0,88686.0,0.0717837]
[1765745410640,0.05833,88687.0,88686.0,0.0707837]
[1765745410842,0.05833,88687.0,88686.0,0.0717837]
[1765745411041,0.05833,88687.0,88686.0,0.0707837]
[1765745411442,0.05833,88687.0,88686.0,0.0717837]
[1765745411847,0.05833,88687.0,88686.0,0.002]
[1765745413152,0.05833,88687.0,88682.0,0.0112741]
[1765745413354,0.05833,88683.0,88682.0,0.0697841]
[1765745414645,0.05933,88683.0,88682.0,0.0697841]
[1765745415144,0.06033,88683.0,88682.0,0.0697841]
[1765745416560,0.06033,88683.0,88682.0,0.0410141]
[1765745416756,0.05933,88683.0,88682.0,0.0410141]
[1765745417148,0.05833,88683.0,88682.0,0.0697841]
[1765745424559,0.05833,88683.0,88682.0,0.05851]
[1765745427355,0.05833,88683.0,88678.0,0.01144372]
[1765745427356,0.05806,88679.0,88678.0,0.06879372]
[1765745427551,0.05806,88679.0,88678.0,0.00016912]
[1765745428764,0.05806,88679.0,88678.0,0.02824912]
[1765745428964,0.05806,88679.0,88678.0,0.05751912]
[1765745429659,0.06006,88679.0,88678.0,0.02824912]
[1765745430161,0.06206,88679.0,88678.0,0.02824912]
[1765745432456,0.06206,88679.0,88678.0,0.00016912]
[1765745432654,0.06006,88679.0,88678.0,0.00016912]
[1765745433162,0.06206,88679.0,88678.0,0.00016912]
[1765745433362,0.09088011,88679.0,88678.0,0.00016912]
[1765745436862,0.0680653,88673.0,88672.0,0.0001154]
[1765745437060,0.0680653,88673.0,88672.0,0.0273954]
[1765745437464,0.0680653,88673.0,88672.0,0.0554654]
[1765745438256,0.0690653,88673.0,88672.0,0.0554654]
[1765745438451,0.05779,88673.0,88672.0,0.0554654]
[1765745439467,0.05879,88673.0,88672.0,0.0554654]
[1765745450671,0.08763041,88673.0,88672.0,0.0554654]
[1765745453370,0.05822041,88673.0,88672.0,0.0554654]
[1765745453675,0.05922041,88673.0,88672.0,0.0554654]
[1765745453872,0.05822041,88673.0,88672.0,0.0554654]
[1765745454180,0.08763041,88673.0,88672.0,0.0554654]
[1765745455179,0.08563041,88673.0,88672.0,0.0554654]
[1765745457666,0.08563041,88673.0,88672.0,0.0001154]
[1765745458073,0.08563041,88673.0,88672.0,0.0273254]
[1765745458476,0.08563041,88673.0,88672.0,0.0547254]
[1765745458982,0.08663041,88673.0,88672.0,0.0547254]
[1765745459184,0.08763041,88673.0,88672.0,0.0547254]
[1765745460584,0.0876313,88673.0,88672.0,0.0547254]
[1765745463371,0.0876313,88673.0,88672.0,0.0001154]
[1765745463674,0.0876313,88673.0,88672.0,0.0273254]
[1765745463881,0.0876313,88673.0,88672.0,0.0001154]
[1765745464481,0.0876313,88673.0,88672.0,0.0547254]
[1765745470585,0.08751851,88673.0,88672.0,0.0547254]
[1765745473697,0.0308413,88673.0,88672.0,0.0547254]
[1765745474282,0.0600613,88673.0,88672.0,0.0547254]
[1765745474682,0.0873413,88673.0,88672.0,0.0547254]
[1765745474883,0.0863413,88673.0,88672.0,0.0547254]
[1765745475486,0.0863413,88673.0,88672.0,0.0557254]
[1765745476696,0.0863413,88673.0,88672.0,0.0567254]
[1765745484408,0.0575,88673.0,88672.0,0.0567254]
[1765745486910,0.08633927,88673.0,88672.0,0.0567254]
[1765745487509,0.3608,88679.0,88678.0,0.0689147]
[1765745487810,0.38964058,88679.0,88678.0,0.0689147]
[1765745488012,0.3608,88679.0,88678.0,0.0689147]
[1765745488712,0.53332991,88690.0,88689.0,0.05764]
[1765745488901,0.44754316,88690.0,88689.0,0.05764]
[1765745490009,0.44754316,88690.0,88689.0,0.06859]
[1765745490010,0.44954316,88690.0,88689.0,0.06859]
[1765745490202,0.44954316,88690.0,88689.0,0.05764]
[1765745490910,0.45054316,88690.0,88689.0,0.05764]
[1765745491412,0.44854316,88690.0,88689.0,0.05764]
[1765745492312,0.44754316,88690.0,88689.0,0.05764]
[1765745493419,0.41883,88690.0,88689.0,0.05764]
[1765745493713,0.44751109,88690.0,88689.0,0.05764]
[1765745493902,0.44751109,88690.0,88687.0,0.0112735]
[1765745493903,0.05803,88688.0,88687.0,0.0112735]
[1765745494103,0.01639,88686.0,88683.0,0.040474]
[1765745494303,0.05803,88684.0,88683.0,0.068914]
[1765745495914,0.01153,88680.0,88679.0,0.0404745]
[1765745496109,0.06956,88680.0,88679.0,0.0689145]
[1765745497116,0.06956,88680.0,88679.0,0.0699145]
[1765745497318,0.05803,88680.0,88679.0,0.0699145]
[1765745498618,0.05803,88680.0,88679.0,0.0689145]
[1765745503515,0.0276625,88696.0,88689.0,0.0112732]
[1765745503732,0.0276625,88696.0,88694.0,0.05764]
[1765745503733,0.05819912,88695.0,88694.0,0.05764]
[1765745503911,0.08687625,88695.0,88694.0,0.05764]
[1765745504722,0.08887625,88695.0,88694.0,0.05764]
[1765745505220,0.08987625,88695.0,88694.0,0.05764]
[1765745505818,0.08787625,88695.0,88694.0,0.05764]
[1765745506020,0.08887625,88695.0,88694.0,0.05764]
[1765745506924,0.07442,88688.0,88687.0,0.0689135]
[1765745508015,0.07442,88688.0,88687.0,0.0699135]
[1765745508215,0.05803,88688.0,88687.0,0.0699135]
[1765745508521,0.43522,88688.0,88687.0,0.0709135]
[1765745509422,0.43522,88688.0,88687.0,0.0699135]
[1765745510325,0.43522,88688.0,88687.0,0.0689135]
[1765745511027,0.43722,88688.0,88687.0,0.0689135]
[1765745511721,0.43622,88688.0,88687.0,0.0689135]
[1765745511912,0.43722,88688.0,88687.0,0.0689135]
[1765745512118,0.43722,88688.0,88687.0,0.0112735]
[1765745512623,0.43722,88688.0,88687.0,0.0404735]
[1765745513325,0.43622,88688.0,88687.0,0.0404735]
[1765745513526,0.43722,88688.0,88687.0,0.0404735]
[1765745513928,0.43622,88688.0,88687.0,0.0404735]
[1765745514227,0.07642,88688.0,88687.0,0.0404735]
[1765745514415,0.10511445,88688.0,88687.0,0.0404735]
[1765745514924,0.10411445,88688.0,88687.0,0.0404735]
[1765745515121,0.10511445,88688.0,88687.0,0.0404735]
[1765745521532,0.10511445,88688.0,88687.0,0.0292]
[1765745521833,0.05698,88684.0,88683.0,0.00016912]
[1765745522033,0.08567445,88684.0,88683.0,0.00016912]
[1765745523433,0.08667445,88684.0,88683.0,0.00016912]
[1765745523933,0.08767445,88684.0,88683.0,0.00016912]
[1765745524730,0.08667445,88684.0,88683.0,0.00016912]
[1765745524929,0.08967445,88684.0,88683.0,0.00016912]
[1765745526433,0.09167445,88684.0,88683.0,0.00016912]
[1765745526634,0.45247445,88684.0,88683.0,0.00016912]
[1765745527129,0.44847445,88684.0,88683.0,0.00016912]
[1765745527331,0.45047445,88684.0,88683.0,0.00016912]
[1765745528327,0.44847445,88684.0,88683.0,0.00016912]
[1765745528527,0.45047445,88684.0,88683.0,0.00016912]
[1765745533534,0.45047445,88684.0,88683.0,0.02928912]
[1765745534037,0.45047445,88684.0,88683.0,0.00016912]
[1765745534532,0.08967445,88684.0,88683.0,0.00016912]
[1765745534732,0.45047445,88684.0,88683.0,0.00016912]
[1765745535439,0.44847445,88684.0,88683.0,0.00016912]
[1765745535639,0.45047445,88684.0,88683.0,0.00016912]
[1765745536539,0.44847445,88684.0,88683.0,0.00016912]
[1765745536941,0.45047445,88684.0,88683.0,0.00016912]
[1765745548944,0.44847445,88684.0,88683.0,0.00016912]
[1765745549148,0.46520445,88684.0,88683.0,0.00016912]
[1765745549339,0.46620445,88684.0,88683.0,0.00016912]
[1765745555553,0.10540445,88684.0,88683.0,0.00016912]
[1765745555751,0.82700445,88684.0,88683.0,0.00016912]
[1765745560250,0.82700445,88684.0,88683.0,0.02732912]
[1765745563351,0.10540445,88684.0,88683.0,0.02732912]
[1765745563546,0.46620445,88684.0,88683.0,0.02732912]
[1765745565356,0.10540445,88684.0,88683.0,0.02732912]
[1765745565554,0.46620445,88684.0,88683.0,0.02732912]
[1765745567539,0.46620445,88684.0,88683.0,0.00016912]
[1765745568950,0.46620445,88684.0,88683.0,0.02732912]
[1765745569757,0.46520445,88684.0,88683.0,0.02732912]
[1765745569960,0.46620445,88684.0,88683.0,0.02732912]
[1765745570756,0.03169445,88684.0,88683.0,0.05597912]
[1765745571159,0.003,88684.0,88683.0,0.05597912]
[1765745571652,0.002,88684.0,88683.0,0.05597912]
[1765745572347,0.001,88684.0,88683.0,0.05597912]
[1765745572553,0.05684,88684.0,88683.0,0.05797912]
[1765745572861,0.05584,88684.0,88683.0,0.05897912]
[1765745573456,0.05584,88684.0,88683.0,0.05997912]
[1765745573958,0.05584,88684.0,88683.0,0.05797912]
[1765745574154,0.05584,88684.0,88683.0,0.41877912]
[1765745584674,0.3608,88715.0,88694.0,0.05737]
[1765745584871,0.4167,88715.0,88714.0,0.05737]
[1765745585072,0.4167,88715.0,88705.0,0.02965]
[1765745585073,0.0559,88706.0,88705.0,0.02965]
[1765745585373,0.0559,88706.0,88705.0,0.05737]
[1765745586567,0.0589,88706.0,88705.0,0.05737]
[1765745587166,0.0559,88706.0,88705.0,0.06857039]
[1765745588870,0.05205336,88706.0,88705.0,0.06857039]
[1765745608389,0.05205336,88706.0,88698.0,0.01688]
[1765745608390,0.0848421,88698.0,88673.0,0.14158706]
[1765745608578,0.06523,88680.0,88679.0,0.02758]
[1765745608784,0.06523,88680.0,88679.0,0.05632]
[1765745609278,0.05632,88680.0,88679.0,0.05632]
[1765745610088,0.05732,88680.0,88679.0,0.05632]
[1765745611480,0.05832,88680.0,88679.0,0.05632]
[1765745612185,0.05732,88680.0,88679.0,0.05632]
[1765745612392,0.05832,88680.0,88679.0,0.05632]
[1765745617293,0.05732,88680.0,88679.0,0.05632]
[1765745617494,0.05832,88680.0,88679.0,0.05632]
[1765745618695,0.07613,88680.0,88679.0,0.05632]